fUST/lending_fUST_20260106
["ID","MTS","AMOUNT","RATE_DAILY","PERIOD"]
[400489649,1767659443952,-346.0,0.00014069,2]
[400489650,1767659443961,-346.0,0.00014069,2]
[400489651,1767659443970,-346.0,0.00014069,2]
[400489652,1767659443979,-346.0,0.00014069,2]
[400489653,1767659443989,-346.0,0.00014069,2]
[400489654,1767659443999,-189.35618474,0.00014069,2]
[400489655,1767659444009,-7008.45623522,0.00014121,2]
[400489656,1767659444019,-600.0,0.00014221,2]
[400489657,1767659444029,-1000.0,0.00014221,2]
[400489658,1767659444039,-195.0,0.00014225,2]
[400489659,1767659444152,-195.0,0.00014231,2]
[400489660,1767659444161,-200.0,0.00014246,2]
[400489661,1767659444170,-200.0,0.00014246,2]
[400489662,1767659444179,-252.3369474,0.00014247,2]
[400489663,1767659444190,-1000.0,0.00014247,2]
[400489664,1767659444199,-1000.0,0.00014247,2]
[400489665,1767659444208,-1000.0,0.00014247,2]
[400489666,1767659444218,-1000.0,0.00014247,2]
[400489667,1767659444227,-1000.0,0.00014247,2]
[400489668,1767659444236,-1000.0,0.00014247,2]
[400489669,1767659444245,-1000.0,0.00014247,2]
[400489670,1767659444254,-1000.0,0.00014247,2]
[400489671,1767659444263,-752.06472962,0.00014247,2]
[400489672,1767659444272,-1000.0,0.00014247,2]
[400489673,1767659444281,-1000.0,0.00014247,2]
[400489674,1767659444290,-1000.0,0.00014247,2]
[400489675,1767659444299,-1000.0,0.00014247,2]
[400489676,1767659444308,-1000.0,0.00014247,2]
[400489677,1767659444318,-1003.44824072,0.00014247,2]
[400489678,1767659444326,-1000.0,0.00014247,2]
[400489679,1767659444336,-1000.0,0.00014247,2]
[400489680,1767659444345,-1000.0,0.00014247,2]
[400489681,1767659444354,-298.19005658,0.00014247,2]
[400489682,1767659444363,-1000.0,0.00014247,2]
[400489683,1767659444371,-1000.0,0.00014247,2]
[400489684,1767659444381,-1000.0,0.00014247,2]
[400489685,1767659444391,-1000.0,0.00014247,2]
[400489686,1767659444400,-1000.0,0.00014247,2]
[400489687,1767659444409,-1000.0,0.00014247,2]
[400489688,1767659444418,-1000.0,0.00014247,2]
[400489689,1767659444428,-1000.0,0.00014247,2]
[400489690,1767659444438,-1000.0,0.00014247,2]
[400489691,1767659444447,-1000.0,0.00014247,2]
[400489692,1767659444456,-609.90250853,0.00014247,2]
[400489693,1767659444465,-1000.0,0.00014247,2]
[400489694,1767659444475,-1000.0,0.00014247,2]
[400489695,1767659444485,-1000.0,0.00014247,2]
[400489696,1767659444495,-1000.0,0.00014247,2]
[400489697,1767659444504,-1000.0,0.00014247,2]
[400489698,1767659444514,-1000.0,0.00014247,2]
[400489699,1767659444524,-157.83137815,0.00014247,2]
[400489700,1767659444535,-1000.0,0.00014247,2]
[400489701,1767659444545,-1000.0,0.00014247,2]
[400489702,1767659444554,-1000.0,0.00014247,2]
[400489703,1767659444564,-1000.0,0.00014247,2]
[400489704,1767659444574,-1000.0,0.00014247,2]
[400489705,1767659444583,-433.76093812,0.00014247,2]
[400489706,1767659444592,-1000.0,0.00014247,2]
[400489707,1767659444602,-1000.0,0.00014247,2]
[400489708,1767659444612,-689.55355886,0.00014247,2]
[400489709,1767659444622,-1000.0,0.00014247,2]
[400489710,1767659444632,-1000.0,0.00014247,2]
[400489711,1767659444643,-443.0912917,0.00014247,2]
[400489712,1767659444653,-267.6781502,0.00014247,2]
[400489713,1767659444663,-1000.0,0.00014247,2]
[400489714,1767659444672,-866.45646788,0.00014247,2]
[400489715,1767659444682,-1000.0,0.00014247,2]
[400489716,1767659444691,-1000.0,0.00014247,2]
[400489717,1767659444701,-1000.0,0.00014247,2]
[400489718,1767659444711,-1000.0,0.00014247,2]
[400489719,1767659444721,-500.7533204,0.00014247,2]
[400489720,1767659444731,-1000.0,0.00014247,2]
[400489721,1767659444741,-1000.0,0.00014247,2]
[400489722,1767659444752,-1000.0,0.00014247,2]
[400489723,1767659444765,-1000.0,0.00014247,2]
[400489724,1767659444775,-1000.0,0.00014247,2]
[400489725,1767659444784,-441.27132624,0.00014247,2]
[400489726,1767659444795,-955.75371242,0.00014247,2]
[400489727,1767659444804,-1000.0,0.00014247,2]
[400489728,1767659444814,-1000.0,0.00014247,2]
[400489729,1767659444823,-1000.0,0.00014247,2]
[400489730,1767659444834,-1000.0,0.00014247,2]
[400489731,1767659444844,-1110.99561732,0.00014247,2]
[400489732,1767659444853,-1000.0,0.00014247,2]
[400489733,1767659444863,-912.83318582,0.00014247,2]
[400489734,1767659444872,-250.0,0.00014247,2]
[400489735,1767659444881,-1000.0,0.00014247,2]
[400489736,1767659444892,-310.09338891,0.00014247,2]
[400489737,1767659444901,-1000.0,0.00014247,2]
[400489738,1767659444911,-295.43360933,0.00014247,2]
[400489739,1767659444920,-1000.0,0.00014247,2]
[400489740,1767659444930,-1000.0,0.00014247,2]
[400489741,1767659444939,-1000.0,0.00014247,2]
[400489742,1767659444949,-1000.0,0.00014247,2]
[400489743,1767659444959,-151.0,0.00014247,2]
[400489744,1767659444968,-237.174496,0.00014247,2]
[400489745,1767659444978,-237.174496,0.00014247,2]
[400489746,1767659444987,-237.174496,0.00014247,2]
[400489747,1767659444996,-237.174496,0.00014247,2]
[400489748,1767659445005,-3631.24724813,0.00014332,2]
[400489749,1767659445015,-195.0,0.00014361,2]
[400489750,1767659445024,-1146.077124,0.00014368,2]
[400489751,1767659445033,-1146.077124,0.00014368,2]
[400489752,1767659445043,-1146.077124,0.00014368,2]
[400489753,1767659445052,-1146.077124,0.00014368,2]
[400489754,1767659445062,-151.0,0.00014368,2]
[400489755,1767659445071,-1500.0,0.00014368,2]
[400489756,1767659445081,-1500.0,0.00014368,2]
[400489757,1767659445090,-1500.0,0.00014368,2]
[400489758,1767659445100,-1500.0,0.00014368,2]
[400489759,1767659445110,-1240.27229345,0.00014368,2]
[400489760,1767659445119,-1500.0,0.00014368,2]
[400489761,1767659445129,-1500.0,0.00014368,2]
[400489762,1767659445139,-1500.0,0.00014368,2]
[400489763,1767659445149,-1500.0,0.00014368,2]
[400489764,1767659445159,-1500.0,0.00014368,2]
[400489765,1767659445169,-283.56725254,0.00014368,2]
[400489766,1767659445179,-1500.0,0.00014368,2]
[400489767,1767659445189,-1500.0,0.00014368,2]
[400489769,1767659445198,-1500.0,0.00014368,2]
[400489771,1767659445207,-1500.0,0.00014368,2]
[400489773,1767659445216,-1500.0,0.00014368,2]
[400489774,1767659445226,-519.21125706,0.00014368,2]
[400489776,1767659445235,-1500.0,0.00014368,2]
[400489777,1767659445244,-712.0093833,0.00014368,2]
[400489778,1767659445253,-1500.0,0.00014368,2]
[400489779,1767659445264,-1500.0,0.00014368,2]
[400489780,1767659445274,-720.55709982,0.00014368,2]
[400489781,1767659445284,-1500.0,0.00014368,2]
[400489782,1767659445292,-1500.0,0.00014368,2]
[400489784,1767659445302,-1221.19075895,0.00014368,2]
[400489786,1767659445311,-465.35115233,0.00014368,2]
[400489787,1767659445320,-1500.0,0.00014368,2]
[400489788,1767659445330,-1500.0,0.00014368,2]
[400489789,1767659445339,-1500.0,0.00014368,2]
[400489790,1767659445349,-160.0,0.0001437,3]
[400489791,1767659445358,-4108.71156495,0.00014374,2]
[400489792,1767659445368,-513.56,0.000144,2]
[400489793,1767659445378,-600.0,0.0001441,2]
[400489794,1767659445388,-600.0,0.0001456,2]
[400489795,1767659445398,-195.0,0.00014593,2]
[400489796,1767659445407,-195.0,0.00014596,2]
[400489797,1767659445418,-2384.62777189,0.00014662,2]
[400489798,1767659445428,-1152.0,0.00014675,2]
[400489799,1767659445438,-4609.0,0.00014678,2]
[400489800,1767659445448,-600.0,0.0001471,2]
[400489801,1767659445458,-1637.92402051,0.0001471,2]
[400489802,1767659445467,-205.48068196,0.00014735,2]
[400489803,1767659445476,-200.0,0.00014735,2]
[400489804,1767659445485,-500.0,0.00014736,2]
[400489805,1767659445494,-237.174496,0.00014736,2]
[400489806,1767659445504,-237.174496,0.00014736,2]
[400489807,1767659445515,-237.174496,0.00014736,2]
[400489808,1767659445525,-237.174496,0.00014736,2]
[400489809,1767659445535,-100000.0,0.00014736,2]
[400489810,1767659445545,-195.0,0.00014755,2]
[400489811,1767659445554,-1146.077124,0.00014755,2]
[400489812,1767659445563,-1146.077124,0.00014755,2]
[400489813,1767659445573,-1146.077124,0.00014755,2]
[400489814,1767659445583,-1146.077124,0.00014755,2]
[400489815,1767659445592,-900.0,0.00014768,2]
[400489816,1767659445602,-151.0,0.00014775,2]
[400489817,1767659445611,-195.0,0.00014788,2]
[400489818,1767659445621,-151.0,0.00014788,2]
[400489819,1767659445631,-200.0,0.00014794,2]
[400489820,1767659445643,-524.36073826,0.00014795,2]
[400489821,1767659445652,-1500.0,0.00014795,2]
[400489822,1767659445661,-1373.77158048,0.00014795,2]
[400489823,1767659445670,-1500.0,0.00014795,2]
[400489824,1767659445680,-1159.0573769,0.00014795,2]
[400489825,1767659445690,-1500.0,0.00014795,2]
[400489826,1767659445700,-1500.0,0.00014795,2]
[400489827,1767659445709,-1500.0,0.00014795,2]
[400489828,1767659445719,-1500.0,0.00014795,2]
[400489829,1767659445729,-1500.0,0.00014795,2]
[400489830,1767659445739,-1500.0,0.00014795,2]
[400489831,1767659445750,-1500.0,0.00014795,2]
[400489832,1767659445762,-369.20868166,0.00014795,2]
[400489833,1767659445771,-1500.0,0.00014795,2]
[400489834,1767659445781,-1500.0,0.00014795,2]
[400489835,1767659445791,-1500.0,0.00014795,2]
[400489836,1767659445802,-1500.0,0.00014795,2]
[400489837,1767659445811,-1427.72707007,0.00014795,2]
[400489838,1767659445822,-669.63061625,0.00014795,2]
[400489839,1767659445833,-691.56016798,0.00014795,2]
[400489840,1767659445842,-1500.0,0.00014795,2]
[400489841,1767659445851,-1500.0,0.00014795,2]
[400489842,1767659445861,-1500.0,0.00014795,2]
[400489843,1767659445870,-1289.66039169,0.00014795,2]
[400489844,1767659445880,-1500.0,0.00014795,2]
[400489845,1767659445890,-1500.0,0.00014795,2]
[400489846,1767659445900,-1500.0,0.00014795,2]
[400489848,1767659445910,-1500.0,0.00014795,2]
[400489849,1767659445919,-1500.0,0.00014795,2]
[400489851,1767659445929,-1500.0,0.00014795,2]
[400489853,1767659445938,-1500.0,0.00014795,2]
[400489854,1767659445947,-1500.0,0.00014795,2]
[400489856,1767659445956,-1500.0,0.00014795,2]
[400489857,1767659445966,-1500.0,0.00014795,2]
[400489858,1767659445975,-1500.0,0.00014795,2]
[400489859,1767659445985,-1500.0,0.00014795,2]
[400489860,1767659445995,-1500.0,0.00014795,2]
[400489861,1767659446003,-1514.17993961,0.00014795,2]
[400489862,1767659446012,-1500.0,0.00014795,2]
[400489863,1767659446022,-1500.0,0.00014795,2]
[400489864,1767659446031,-1500.0,0.00014795,2]
[400489865,1767659446042,-1500.0,0.00014795,2]
[400489866,1767659446052,-373.28262423,0.00014795,2]
[400489867,1767659446062,-1500.0,0.00014795,2]
[400489868,1767659446072,-1500.0,0.00014795,2]
[400489869,1767659446083,-1500.0,0.00014795,2]
[400489870,1767659446092,-1500.0,0.00014795,2]
[400489871,1767659446102,-1500.0,0.00014795,2]
[400489872,1767659446113,-1500.0,0.00014795,2]
[400489873,1767659446123,-1644.9796243,0.00014795,2]
[400489874,1767659446137,-1500.0,0.00014795,2]
[400489875,1767659446147,-1500.0,0.00014795,2]
[400489876,1767659446163,-1517.31864691,0.00014795,2]
[400489877,1767659446173,-1500.0,0.00014795,2]
[400489878,1767659446183,-350.0,0.00014795,2]
[400489879,1767659446193,-1079.89000248,0.00014795,2]
[400489880,1767659446203,-1500.0,0.00014795,2]
[400489881,1767659446212,-1000.0,0.00014795,2]
[400489882,1767659446222,-1500.0,0.00014795,2]
[400489883,1767659446232,-1106.60484726,0.00014795,2]
[400489884,1767659446241,-987.63967399,0.00014795,2]
[400489885,1767659446250,-3946.60813727,0.00014795,2]
[400489886,1767659446260,-339.84907451,0.00014795,2]
[400489887,1767659446270,-1359.39629804,0.00014795,2]
[400489888,1767659446288,-3058.64167058,0.00014795,2]
[400489889,1767659446311,-5437.58519215,0.00014795,2]
[400489890,1767659446325,-8487.73063587,0.00014795,2]
[400489891,1767659446335,-513.56,0.000148,2]
[400489892,1767659446345,-600.0,0.0001486,2]
[400489893,1767659446355,-195.0,0.00014882,2]
[400489894,1767659446364,-195.0,0.00014885,2]
[400489895,1767659446376,-195.0,0.00014889,2]
[400489896,1767659446388,-453.92978148,0.000149,2]
[400489897,1767659446397,-453.92978146,0.000149,2]
[400489898,1767659446407,-453.92978146,0.000149,2]
[400489899,1767659446416,-195.0,0.00014902,2]
[400489900,1767659446427,-195.0,0.00014904,2]
[400489901,1767659446436,-318.87701711,0.00014916,2]
[400489902,1767659446446,-1010.54164352,0.00014916,2]
[400489903,1767659446455,-1801.38622598,0.00014916,2]
[400489904,1767659446464,-1000.0,0.00014916,2]
[400489905,1767659446473,-2000.0,0.00014916,2]
[400489906,1767659446483,-2000.0,0.00014916,2]
[400489907,1767659446493,-546.43691011,0.00014916,2]
[400489908,1767659446503,-2000.0,0.00014916,2]
[400489909,1767659446512,-2000.0,0.00014916,2]
[400489910,1767659446522,-2000.0,0.00014916,2]
[400489911,1767659446533,-1343.79480379,0.00014916,2]
[400489912,1767659446542,-2000.0,0.00014916,2]
[400489913,1767659446650,-2000.0,0.00014916,2]
[400489914,1767659446659,-2000.0,0.00014916,2]
[400489915,1767659446669,-2000.0,0.00014916,2]
[400489916,1767659446678,-1523.49454,0.00014916,2]
[400489917,1767659446688,-2000.0,0.00014916,2]
[400489918,1767659446698,-2000.0,0.00014916,2]
[400489919,1767659446707,-754.02216998,0.00014916,2]
[400489920,1767659446718,-381.28002084,0.00014916,2]
[400489921,1767659446727,-1607.59034005,0.00014916,2]
[400489922,1767659446737,-2000.0,0.00014916,2]
[400489923,1767659446747,-195.0,0.00014936,2]
[400489924,1767659446761,-195.0,0.00014947,2]
[400489925,1767659446770,-160.0,0.0001496,4]
[400489926,1767659446779,-206.34098665,0.00014962,2]
[400489927,1767659446788,-216.3175234,0.00014963,2]
[400489928,1767659446799,-92240.8609892,0.00014963,2]
[400489929,1767659446808,-1743.5666026,0.00014963,2]
[400489930,1767659446817,-1277.5251474,0.00014963,2]
[400489931,1767659446827,-158.312179,0.00014963,2]
[400489932,1767659446836,-1146.077124,0.00014963,2]
[400489933,1767659446845,-1146.077124,0.00014963,2]
[400489934,1767659446855,-1146.077124,0.00014963,2]
[400489935,1767659446863,-1146.077124,0.00014963,2]
[400489936,1767659446872,-237.174496,0.00014963,2]
[400489937,1767659446882,-237.174496,0.00014963,2]
[400489938,1767659446892,-237.174496,0.00014963,2]
[400489939,1767659446900,-237.174487,0.00014963,2]
[400489940,1767659446910,-151.0,0.00014963,2]
[400489941,1767659446919,-1000.0,0.00015,2]
[400489942,1767659446928,-1155.7324043,0.00015,2]
[400489943,1767659446938,-475.0,0.0001501,2]
[400489944,1767659446947,-165847.99578572,0.0001501,2]
[400489945,1767659446956,-441.194715,0.00015068,2]
[400489946,1767659446965,-800.0,0.00015068,2]
[400489947,1767659446974,-287.23,0.00015068,4]
[400489948,1767659446983,-195.0,0.00015125,2]
[400489949,1767659446992,-513.56,0.000152,2]
[400489950,1767659447002,-160.0,0.00015255,7]
[400489951,1767659447012,-507.48779685,0.00015306,2]
[400489952,1767659447021,-1200.0,0.00015316,2]
[400489953,1767659447030,-764.62986514,0.00015334,2]
[400489954,1767659447039,-2000.0,0.00015342,2]
[400489955,1767659447048,-1601.30603512,0.00015342,2]
[400489956,1767659447057,-2000.0,0.00015342,2]
[400489957,1767659447066,-968.13502995,0.00015342,2]
[400489958,1767659447075,-670.39193046,0.00015342,2]
[400489959,1767659447084,-2000.0,0.00015342,2]
[400489960,1767659447094,-618.63514915,0.00015342,2]
[400489961,1767659447104,-2000.0,0.00015342,2]
[400489962,1767659447113,-1835.03729104,0.00015342,2]
[400489963,1767659447124,-184.12895809,0.00015342,2]
[400489964,1767659447135,-491.42200278,0.00015342,2]
[400489965,1767659447144,-2003.30612598,0.00015342,2]
[400489966,1767659447159,-501.09217932,0.00015342,2]
[400489967,1767659447168,-417.66834509,0.00015342,2]
[400489968,1767659447178,-2000.0,0.00015342,2]
[400489969,1767659447188,-2000.0,0.00015342,2]
[400489970,1767659447198,-2000.0,0.00015342,2]
[400489971,1767659447208,-501.17940112,0.00015342,2]
[400489972,1767659447217,-1577.06068601,0.00015342,2]
[400489973,1767659447226,-2000.0,0.00015342,2]
[400489974,1767659447236,-2000.0,0.00015342,2]
[400489975,1767659447245,-1851.23161684,0.00015342,2]
[400489976,1767659447254,-2000.0,0.00015342,2]
[400489977,1767659447263,-501.02479186,0.00015342,2]
[400489978,1767659447274,-1001.78864113,0.00015342,2]
[400489979,1767659447283,-2000.0,0.00015342,2]
[400489980,1767659447293,-1526.65891918,0.00015342,2]
[400489981,1767659447303,-728.11193972,0.00015342,2]
[400489982,1767659447313,-2000.0,0.00015342,2]
[400489983,1767659447322,-1152.47965923,0.00015342,2]
[400489984,1767659447333,-1785.18972345,0.00015342,2]
[400489985,1767659447343,-2000.0,0.00015342,2]
[400489986,1767659447353,-2000.0,0.00015342,2]
[400489987,1767659447363,-1981.40904469,0.00015342,2]
[400489988,1767659447372,-2000.0,0.00015342,2]
[400489989,1767659447381,-2000.0,0.00015342,2]
[400489990,1767659447391,-2000.0,0.00015342,2]
[400489991,1767659447401,-1606.47999173,0.00015342,2]
[400489992,1767659447410,-1919.21077591,0.00015342,2]
[400489993,1767659447420,-2005.16333273,0.00015342,2]
[400489994,1767659447429,-1500.79513169,0.00015342,2]
[400489995,1767659447441,-2000.0,0.00015342,2]
[400489996,1767659447451,-542.59142732,0.00015342,2]
[400489997,1767659447462,-2000.0,0.00015342,2]
[400489998,1767659447472,-2000.0,0.00015342,2]
[400489999,1767659447481,-195.0,0.00015351,2]
[400490000,1767659447491,-195.0,0.00015374,2]
[400490001,1767659447500,-195.0,0.00015437,2]
[400490002,1767659447510,-195.0,0.00015448,2]
[400490003,1767659447519,-2500.0,0.00015464,2]
[400490004,1767659447529,-1506.20046676,0.00015464,2]
[400490005,1767659447538,-2500.0,0.00015464,2]
[400490006,1767659447547,-501.65484874,0.00015464,2]
[400490007,1767659447558,-2500.0,0.00015464,2]
[400490008,1767659447568,-2500.0,0.00015464,2]
[400490009,1767659447577,-2500.0,0.00015464,2]
[400490010,1767659447587,-2500.0,0.00015464,2]
[400490011,1767659447597,-1069.61598795,0.00015464,2]
[400490012,1767659447607,-2500.0,0.00015464,2]
[400490013,1767659447618,-2500.0,0.00015464,2]
[400490014,1767659447628,-195.0,0.00015529,2]
[400490015,1767659447638,-160.0,0.0001555,8]
[400490016,1767659447648,-161.02849227,0.0001555,5]
[400490017,1767659447657,-160.0,0.0001555,5]
[400490018,1767659447667,-160.0,0.0001555,5]
[400490019,1767659447676,-195.0,0.00015565,2]
[400490020,1767659447689,-195.0,0.00015573,2]
[400490021,1767659447698,-195.0,0.00015583,2]
[400490022,1767659447707,-195.0,0.00015619,2]
[400490023,1767659447716,-195.0,0.00015626,2]
[400490024,1767659447726,-1000.0,0.00015643,2]
[400490025,1767659447735,-244.0,0.00015643,2]
[400490026,1767659447744,-513.56,0.000157,2]
[400490027,1767659447755,-5098.38945619,0.00015823,4]
[400490028,1767659447767,-169.93997003,0.00015855,16]
[400490029,1767659447776,-1500.0,0.00015864,2]
[400490030,1767659447785,-638.59497306,0.0001589,2]
[400490031,1767659447795,-1909.51288327,0.0001589,2]
[400490032,1767659447804,-2500.0,0.0001589,2]
[400490033,1767659447814,-2500.0,0.0001589,2]
[400490034,1767659447825,-2500.0,0.0001589,2]
[400490035,1767659447835,-1091.11767132,0.0001589,2]
[400490036,1767659447844,-472.65413406,0.0001589,2]
[400490037,1767659447854,-2500.0,0.0001589,2]
[400490038,1767659447863,-2500.0,0.0001589,2]
[400490039,1767659447872,-1635.1772767,0.0001589,2]
[400490040,1767659447881,-2500.0,0.0001589,2]
[400490041,1767659447891,-1803.78341264,0.0001589,2]
[400490042,1767659447900,-2500.0,0.0001589,2]
[400490043,1767659447909,-501.26577405,0.0001589,2]
[400490044,1767659447919,-198.25926734,0.0001589,2]
[400490045,1767659447928,-2500.0,0.0001589,2]
[400490046,1767659447938,-1141.77178838,0.0001589,2]
[400490047,1767659447948,-510.80323526,0.0001589,2]
[400490048,1767659447958,-2500.0,0.0001589,2]
[400490049,1767659447967,-2500.0,0.0001589,2]
[400490050,1767659447976,-2145.0,0.00015913,2]
[400490051,1767659447984,-628.0,0.00015913,2]
[400490052,1767659447993,-1365.0,0.00015913,2]
[400490053,1767659448002,-416.0,0.00015913,2]
[400490054,1767659448010,-178.0,0.00015913,2]
[400490055,1767659448019,-5000.0,0.00015939,2]
[400490056,1767659448027,-3000.0,0.00016,2]
[400490057,1767659448035,-2999.99999936,0.00016,2]
[400490058,1767659448045,-3000.0,0.0001601,2]
[400490059,1767659448055,-3000.0,0.00016012,2]
[400490060,1767659448065,-3000.0,0.00016012,2]
[400490061,1767659448075,-3000.0,0.00016012,2]
[400490062,1767659448085,-678.16291891,0.00016012,2]
[400490063,1767659448098,-3000.0,0.00016012,2]
[400490064,1767659448107,-1357.09431551,0.00016012,2]
[400490065,1767659448118,-3000.0,0.00016012,2]
[400490066,1767659448128,-3000.0,0.00016012,2]
[400490067,1767659448138,-3000.0,0.0001602,2]
[400490068,1767659448148,-3000.0,0.0001603,2]
[400490069,1767659448157,-3000.0,0.0001604,2]
[400490070,1767659448166,-5619.071717,0.0001605,2]
[400490071,1767659448176,-513.56,0.000161,2]
[400490072,1767659448185,-500.0,0.00016106,2]
[400490073,1767659448195,-2182.0,0.00016146,2]
[400490074,1767659448204,-800.0,0.00016164,2]
[400490075,1767659448214,-160.13,0.00016361,2]
[400490076,1767659448224,-169.93997003,0.00016376,18]
[400490077,1767659448238,-1800.0,0.00016412,2]
[400490078,1767659448248,-500.0,0.00016438,2]
[400490079,1767659448257,-500.0,0.00016438,2]
[400490080,1767659448266,-593.8968716,0.00016438,2]
[400490081,1767659448276,-500.0,0.00016438,2]
[400490082,1767659448285,-500.0,0.00016438,2]
[400490083,1767659448294,-500.0,0.00016438,2]
[400490084,1767659448303,-500.0,0.00016438,2]
[400490085,1767659448312,-500.0,0.00016438,2]
[400490086,1767659448322,-500.0,0.00016438,2]
[400490087,1767659448331,-500.0,0.00016438,2]
[400490088,1767659448340,-500.0,0.00016438,2]
[400490089,1767659448351,-500.0,0.00016438,2]
[400490090,1767659448360,-500.0,0.00016438,2]
[400490091,1767659448370,-500.0,0.00016438,2]
[400490092,1767659448380,-500.0,0.00016438,2]
[400490093,1767659448389,-440.95584396,0.00016438,2]
[400490094,1767659448398,-500.0,0.00016438,2]
[400490095,1767659448408,-500.0,0.00016438,2]
[400490096,1767659448417,-500.0,0.00016438,2]
[400490097,1767659448427,-500.0,0.00016438,2]
[400490098,1767659448436,-500.0,0.00016438,2]
[400490099,1767659448445,-500.0,0.00016438,2]
[400490100,1767659448455,-500.0,0.00016438,2]
[400490101,1767659448464,-500.0,0.00016438,2]
[400490102,1767659448474,-500.0,0.00016438,2]
[400490103,1767659448483,-500.0,0.00016438,2]
[400490104,1767659448492,-500.0,0.00016438,2]
[400490105,1767659448502,-500.0,0.00016438,2]
[400490106,1767659448511,-500.0,0.00016438,2]
[400490107,1767659448520,-500.0,0.00016438,2]
[400490108,1767659448530,-500.0,0.00016438,2]
[400490109,1767659448539,-500.0,0.00016438,2]
[400490110,1767659448548,-160.10620489,0.00016438,2]
[400490111,1767659448558,-542.69681858,0.00016438,2]
[400490112,1767659448567,-582.59288447,0.00016438,2]
[400490113,1767659448577,-1006.77508782,0.00016438,2]
[400490114,1767659448587,-2009.7064733,0.00016438,2]
[400490115,1767659448596,-2187.88444633,0.00016438,2]
[400490116,1767659448606,-1560.72522029,0.00016438,2]
[400490117,1767659448616,-3000.0,0.00016438,2]
[400490118,1767659448625,-1163.53664572,0.00016438,2]
[400490119,1767659448635,-500.0,0.00016438,2]
[400490120,1767659448645,-3000.0,0.00016438,2]
[400490121,1767659448655,-267.95,0.00016456,2]
[400490122,1767659448664,-513.56,0.000165,2]
[400490123,1767659448673,-536.02896521,0.0001656,2]
[400490124,1767659448682,-1689.48554773,0.0001656,2]
[400490125,1767659448692,-3500.0,0.0001656,2]
[400490126,1767659448702,-3020.60461747,0.0001656,2]
[400490127,1767659448711,-2872.67259127,0.0001656,2]
[400490128,1767659448720,-3500.0,0.0001656,2]
[400490129,1767659448729,-169.93997003,0.00016898,20]
[400490130,1767659448739,-513.56,0.000169,2]
[400490131,1767659448748,-583.38946327,0.0001696,2]
[400490132,1767659448762,-3500.0,0.00016986,2]
[400490133,1767659448771,-158.0,0.00017,2]
[400490134,1767659448781,-2485.45512003,0.00017108,2]
[400490135,1767659448790,-176.61297572,0.00017108,2]
[400490136,1767659448800,-1000.0,0.00017207,2]
[400490137,1767659448809,-492.0,0.00017207,2]
[400490138,1767659448818,-6088.06734742,0.00017272,6]
[400490139,1767659448920,-566.80455233,0.00017306,2]
[400490140,1767659448930,-169.93997003,0.00017419,21]
[400490141,1767659448939,-500.0,0.00017476,7]
[400490142,1767659448949,-4000.0,0.00017534,2]
[400490143,1767659448957,-20581.7180847,0.00017566,2]
[400490144,1767659448966,-316.0,0.00017605,2]
[400490145,1767659448975,-185170.33512662,0.000178,3]
[400490146,1767659449090,-49710.69973749,0.000178,3]
[400490147,1767659449099,-169.93997003,0.0001794,23]
[400490148,1767659449107,-169750.93719592,0.00017998,2]
[400490149,1767659449277,-513.56,0.000174,2]
[400490150,1767659449286,-513.56,0.000178,2]
[400490151,1767659449295,-7946.48,0.00017998,2]
[400490152,1767659449307,-1029.00146496,0.00017998,2]
[400490153,1767659449418,-7008.45623522,0.00017769,2]
[400490154,1767659449426,-6010.38995632,0.00017998,2]
[400490155,1767659449448,-228068.41110133,0.00017998,2]
[400490161,1767659505136,322.77,9.274e-05,2]
[400490167,1767660408526,161.0,0.000301,120]
[400490168,1767660423754,161.0,0.000301,120]